[Event "LJ Slovak Open 2022"]
[Site "Liptovsky Jan"]
[Date "2022.06.26"]
[Round "6.28"]
[White "Mydliar, Jan"]
[Black "Kaminsky, Ladislav"]
[Result "1-0"]
[ECO "B04"]
[WhiteElo "1885"]
[BlackElo "1615"]
[Annotator "NA RC"]
[PlyCount "85"]
[EventDate "2022.06.23"]
[EventType "swiss"]
[EventCountry "SVK"]
[SourceTitle "playchess.com"]
[Source "ChessBase"]
[SourceQuality "1"]
[TimeControl "3600+30"]

1. e4 {[%emt 0:00:03]} Nc6 {[%emt 0:00:04]} 2. Nf3 {[%emt 0:00:08]} Nf6 {[%emt 0:00:23]} 3. e5 {[%emt 0:01:22]} Nd5 {[%emt 0:00:06]} 4. c4 {[%emt 0:00:46]} Nb6 {[%emt 0:00:04]} 5. d4 {[%emt 0:00:15]} d6 {[%emt 0:00:26]} 6. exd6 {[%emt 0:00:22]} exd6 {[%emt 0:00:06]} 7. Be2 {[%emt 0:02:13]} g6 {[%emt 0:00:44]} 8. Bg5 {[%emt 0:03:19]} Be7 {[%emt 0:01:17]} 9. Bh6 {[%emt 0:01:33]} Bf6 {[%emt 0:01:17]} 10. h3 {[%emt 0:02:30]} Bf5 {[%emt 0:00:49]} 11. Nc3 {[%emt 0:03:11]} Qd7 {[%emt 0:01:32]} 12. g4 {[%emt 0:02:34]} Bxg4 {[%emt 0:01:27]} 13. hxg4 {[%emt 0:00:07]} Qxg4 {[%emt 0:00:04]} 14. Rg1 {[%emt 0:03:54]} Qh5 {[%emt 0:01:31]} 15. Bg5 {[%emt 0:02:54]} Bxg5 {[%emt 0:02:46]} 16. Nxg5 {[%emt 0:00:30]} Qh2 {[%emt 0:01:28]} 17. Nf3 {[%emt 0:00:09]} Qf4 {[%emt 0:00:13]} 18. Qd2 {[%emt 0:00:40]} Qxd2+ {[%emt 0:03:12]} 19. Kxd2 {[%emt 0:01:50]} O-O-O {[%emt 0:00:23]} 20. Rae1 {[%emt 0:02:24]} Na5 {[%emt 0:00:33]} 21. b3 {[%emt 0:00:33]} Nc6 {[%emt 0:01:14]} 22. d5 {[%emt 0:01:53]} Ne5 {[%emt 0:00:51]} 23. Ng5 {[%emt 0:02:23]} h6 {[%emt 0:02:16]} 24. Nh3 {[%emt 0:00:46]} g5 {[%emt 0:01:46]} 25. f4 {[%emt 0:00:56]} gxf4 {[%emt 0:02:40]} 26. Nxf4 {[%emt 0:00:09]} Rhg8 {[%emt 0:00:43]} 27. Rxg8 {[%emt 0:02:01]} Rxg8 {[%emt 0:00:08]} 28. Rh1 {[%emt 0:00:43]} Ng4 {[%emt 0:00:50]} 29. Bxg4+ {[%emt 0:01:26]} Rxg4 {[%emt 0:00:07]} 30. Nce2 {[%emt 0:00:14]} Nd7 {[%emt 0:00:56]} 31. Rxh6 {[%emt 0:00:35]} Ne5 {[%emt 0:00:05]} 32. Rh3 {[%emt 0:04:36]} a6 {[%emt 0:00:18]} 33. Nd3 {[%emt 0:01:18]} Rg5 {[%emt 0:01:58]} 34. Nxe5 {[%emt 0:00:24]} dxe5 {[%emt 0:00:07]} 35. Rh8+ {[%emt 0:01:19]} Kd7 {[%emt 0:00:06]} 36. Rh7 {[%emt 0:04:16]} Rf5 {[%emt 0:00:19]} 37. Rg7 {[%emt 0:00:46]} Kd6 {[%emt 0:00:11]} 38. Ke3 {[%emt 0:00:43]} c6 {[%emt 0:01:15]} 39. Nc3 {[%emt 0:02:50]} b5 {[%emt 0:01:15]} 40. Ne4+ {[%emt 0:02:36]} Kd7 {[%emt 0:00:33]} 41. d6 {[%emt 0:02:56]} Ke6 {[%emt 0:00:34]} 42. c5 {[%emt 0:00:27]} Rf1 {[%emt 0:03:48]} 43. Ng5+ {[%emt 0:01:02]} 1-0

[Event "LJ Slovak Open 2022"]
[Site "Liptovsky Jan"]
[Date "2022.06.26"]
[Round "6.29"]
[White "Haasova, Timea"]
[Black "Sekova, Olivia"]
[Result "1-0"]
[ECO "D05"]
[WhiteElo "1811"]
[BlackElo "1708"]
[Annotator "NA RC"]
[PlyCount "149"]
[EventDate "2022.06.23"]
[EventType "swiss"]
[EventCountry "SVK"]
[SourceTitle "playchess.com"]
[Source "ChessBase"]
[SourceQuality "1"]
[TimeControl "3600+30"]

1. d4 {[%emt 0:00:03]} Nf6 {[%emt 0:00:17]} 2. Nf3 {[%emt 0:00:08]} e6 {[%emt 0:01:13]} 3. e3 {[%emt 0:01:02]} d5 {[%emt 0:00:56]} 4. Bd3 {[%emt 0:00:12]} c5 {[%emt 0:00:45]} 5. c3 {[%emt 0:00:17]} Be7 {[%emt 0:02:02]} 6. O-O {[%emt 0:00:38]} O-O {[%emt 0:00:14]} 7. Nbd2 {[%emt 0:00:30]} b6 {[%emt 0:01:53]} 8. dxc5 {[%emt 0:08:10]} bxc5 {[%emt 0:04:12]} 9. e4 {[%emt 0:00:53]} Bb7 {[%emt 0:08:49]} 10. Qe2 {[%emt 0:04:23]} Nc6 {[%emt 0:06:59]} 11. Re1 {[%emt 0:04:50]} Qc7 {[%emt 0:02:13]} 12. exd5 {[%emt 0:08:22]} exd5 {[%emt 0:03:44]} 13. Nf1 {[%emt 0:01:00]} Rfe8 {[%emt 0:02:01]} 14. Bg5 {[%emt 0:09:12]} Bd6 {[%emt 0:18:54]} 15. Qd2 {[%emt 0:01:28]} Ne4 {[%emt 0:02:23]} 16. Qc1 {[%emt 0:04:16]} c4 {[%emt 0:02:38]} 17. Bc2 {[%emt 0:02:05]} Bc5 {[%emt 0:02:12]} 18. Be3 {[%emt 0:01:07]} Ne5 {[%emt 0:01:13]} 19. Nxe5 {[%emt 0:03:33]} Rxe5 {[%emt 0:01:01]} 20. Bxe4 {[%emt 0:01:56]} Rxe4 {[%emt 0:00:19]} 21. Bxc5 {[%emt 0:03:10]} Rxe1 {[%emt 0:00:25]} 22. Qxe1 {[%emt 0:00:13]} Qxc5 {[%emt 0:00:05]} 23. Qe5 {[%emt 0:01:03]} Qc6 {[%emt 0:00:25]} 24. Qd4 {[%emt 0:00:41]} Re8 {[%emt 0:04:22]} 25. Rd1 {[%emt 0:00:50]} h6 {[%emt 0:00:53]} 26. Ng3 {[%emt 0:02:31]} Qb5 {[%emt 0:00:35]} 27. Nf5 {[%emt 0:01:23]} f6 {[%emt 0:00:27]} 28. Nd6 {[%emt 0:00:26]} Qd7 {[%emt 0:00:05]} 29. Nxe8 {[%emt 0:00:34]} Qxe8 {[%emt 0:00:03]} 30. Qd2 {[%emt 0:01:00]} Qe4 {[%emt 0:00:16]} 31. Re1 {[%emt 0:00:52]} Qd3 {[%emt 0:00:41]} 32. Qf4 {[%emt 0:02:26]} Bc6 {[%emt 0:02:06]} 33. h3 {[%emt 0:00:53]} Bd7 {[%emt 0:01:55]} 34. Qb8+ {[%emt 0:01:58]} Kh7 {[%emt 0:00:05]} 35. Qc7 {[%emt 0:01:24]} Ba4 {[%emt 0:01:00]} 36. Re7 {[%emt 0:02:03]} Qg6 {[%emt 0:00:03]} 37. Qg3 {[%emt 0:00:57]} a6 {[%emt 0:00:47]} 38. Qxg6+ {[%emt 0:00:59]} Kxg6 {[%emt 0:00:04]} 39. Re6 {[%emt 0:00:33]} Kf5 {[%emt 0:00:23]} 40. Re7 {[%emt 0:00:37]} g6 {[%emt 0:00:45]} 41. f3 {[%emt 0:00:12]} h5 {[%emt 0:00:43]} 42. Kf2 {[%emt 0:00:32]} h4 {[%emt 0:00:30]} 43. Ke3 {[%emt 0:00:41]} g5 {[%emt 0:00:27]} 44. Rb7 {[%emt 0:01:02]} Bb5 {[%emt 0:00:09]} 45. Rb6 {[%emt 0:00:18]} Ke5 {[%emt 0:00:12]} 46. a4 {[%emt 0:01:17]} Bxa4 {[%emt 0:00:13]} 47. Rxa6 {[%emt 0:00:06]} Bb5 {[%emt 0:00:42]} 48. Rb6 {[%emt 0:00:06]} Ba4 {[%emt 0:00:09]} 49. Kf2 {[%emt 0:00:12]} Kf5 {[%emt 0:00:48]} 50. g3 {[%emt 0:00:18]} hxg3+ {[%emt 0:00:29]} 51. Kxg3 {[%emt 0:00:07]} Bc2 {[%emt 0:00:46]} 52. Rd6 {[%emt 0:01:56]} Ke5 {[%emt 0:00:07]} 53. Rd8 {[%emt 0:00:15]} Bg6 {[%emt 0:00:43]} 54. h4 {[%emt 0:00:15]} gxh4+ {[%emt 0:00:08]} 55. Kxh4 {[%emt 0:00:09]} Bd3 {[%emt 0:00:56]} 56. Kh5 {[%emt 0:00:37]} Ke6 {[%emt 0:01:22]} 57. Kh6 {[%emt 0:00:19]} Ke5 {[%emt 0:00:26]} 58. Kg7 {[%emt 0:00:24]} f5 {[%emt 0:00:08]} 59. Kg6 {[%emt 0:00:35]} Kf4 {[%emt 0:00:49]} 60. Rxd5 {[%emt 0:00:26]} Kxf3 {[%emt 0:00:04]} 61. Kg5 {[%emt 0:00:23]} Ke2 {[%emt 0:00:13]} 62. Rxf5 {[%emt 0:00:32]} Kd1 {[%emt 0:00:43]} 63. Rb5 {[%emt 0:01:02]} Kc2 {[%emt 0:00:40]} 64. Kf4 {[%emt 0:00:11]} Bg6 {[%emt 0:00:22]} 65. Ke3 {[%emt 0:00:17]} Bd3 {[%emt 0:00:19]} 66. Kd4 {[%emt 0:00:08]} Bf1 {[%emt 0:00:13]} 67. Rb4 {[%emt 0:00:25]} Be2 {[%emt 0:00:20]} 68. Rxc4 {[%emt 0:00:26]} Kxb2 {[%emt 0:00:07]} 69. Rb4+ {[%emt 0:00:16]} Ka3 {[%emt 0:00:14]} 70. Rb8 {[%emt 0:00:14]} Ka4 {[%emt 0:00:21]} 71. c4 {[%emt 0:00:10]} Ka5 {[%emt 0:00:13]} 72. c5 {[%emt 0:00:19]} Ka6 {[%emt 0:00:07]} 73. Kd5 {[%emt 0:00:22]} Ka7 {[%emt 0:00:20]} 74. Rb2 {[%emt 0:00:08]} Bf3+ {[%emt 0:00:07]} 75. Kd6 {[%emt 0:00:10]} 1-0

[Event "LJ Slovak Open 2022"]
[Site "Liptovsky Jan"]
[Date "2022.06.26"]
[Round "6.30"]
[White "Koren, Juraj"]
[Black "Vastik, Lukas"]
[Result "0-1"]
[ECO "C37"]
[WhiteElo "1506"]
[BlackElo "1738"]
[Annotator "NA RC"]
[PlyCount "50"]
[EventDate "2022.06.23"]
[EventType "swiss"]
[EventCountry "SVK"]
[SourceTitle "playchess.com"]
[Source "ChessBase"]
[SourceQuality "1"]
[TimeControl "3600+30"]

1. e4 {[%emt 0:00:11]} e5 {[%emt 0:00:02]} 2. f4 {[%emt 0:00:07]} exf4 {[%emt 0:00:16]} 3. Nf3 {[%emt 0:00:08]} g5 {[%emt 0:00:03]} 4. h3 {[%emt 0:01:08]} Qe7 {[%emt 0:01:13]} 5. d3 {[%emt 0:01:09]} Bg7 {[%emt 0:00:26]} 6. c3 {[%emt 0:03:08]} Nh6 {[%emt 0:01:12]} 7. Nh2 {[%emt 0:04:09]} Nf5 {[%emt 0:00:30]} 8. Be2 {[%emt 0:02:03]} Ng3 {[%emt 0:00:23]} 9. Rg1 {[%emt 0:00:18]} d5 {[%emt 0:00:24]} 10. Nd2 {[%emt 0:01:24]} dxe4 {[%emt 0:00:34]} 11. dxe4 {[%emt 0:03:19]} Nc6 {[%emt 0:00:18]} 12. Qc2 {[%emt 0:18:28]} Nxe2 {[%emt 0:00:29]} 13. Kxe2 {[%emt 0:00:10]} Bd7 {[%emt 0:01:01]} 14. Re1 {[%emt 0:00:43]} O-O-O {[%emt 0:00:22]} 15. Kf1 {[%emt 0:00:04]} Ne5 {[%emt 0:00:15]} 16. Ndf3 {[%emt 0:01:25]} Bb5+ {[%emt 0:00:37]} 17. Kg1 {[%emt 0:00:50]} Nd3 {[%emt 0:01:04]} 18. Re2 {[%emt 0:11:32]} Nxc1 {[%emt 0:00:32]} 19. Rxc1 {[%emt 0:00:15]} Bxe2 {[%emt 0:00:25]} 20. Qxe2 {[%emt 0:00:08]} Qc5+ {[%emt 0:00:06]} 21. Kh1 {[%emt 0:00:46]} h5 {[%emt 0:00:22]} 22. Nf1 {[%emt 0:00:47]} g4 {[%emt 0:00:47]} 23. Nh4 {[%emt 0:00:32]} Bf6 {[%emt 0:00:41]} 24. Nf5 {[%emt 0:00:31]} Rde8 {[%emt 0:00:42]} 25. Rd1 {[%emt 0:02:35]} Qxf5 {[%emt 0:00:16]} 0-1

[Event "LJ Slovak Open 2022"]
[Site "Liptovsky Jan"]
[Date "2022.06.26"]
[Round "6.31"]
[White "Zeman, Jan"]
[Black "Straka, Simon"]
[Result "1/2-1/2"]
[ECO "C44"]
[WhiteElo "1726"]
[BlackElo "1523"]
[Annotator "NA RC"]
[PlyCount "27"]
[EventDate "2022.06.23"]
[EventType "swiss"]
[EventCountry "SVK"]
[SourceTitle "playchess.com"]
[Source "ChessBase"]
[SourceQuality "1"]
[TimeControl "3600+30"]

1. e4 {[%emt 0:00:03]} e5 {[%emt 0:00:03]} 2. Nf3 {[%emt 0:00:12]} Nc6 {[%emt 0:02:42]} 3. c3 {[%emt 0:00:39]} Nf6 {[%emt 0:00:30]} 4. d3 {[%emt 0:00:30]} d5 {[%emt 0:00:30]} 5. exd5 {[%emt 0:00:30]} Qxd5 {[%emt 0:03:14]} 6. Be2 {[%emt 0:00:49]} Bg4 {[%emt 0:03:16]} 7. O-O {[%emt 0:00:19]} Be7 {[%emt 0:00:30]} 8. b4 {[%emt 0:00:30]} a6 {[%emt 0:01:25]} 9. a4 {[%emt 0:00:19]} O-O {[%emt 0:00:30]} 10. Be3 {[%emt 0:01:05]} e4 {[%emt 0:06:21]} 11. dxe4 {[%emt 0:02:42]} Qxe4 {[%emt 0:00:30]} 12. Nbd2 {[%emt 0:01:40]} Qd5 {[%emt 0:01:58]} 13. Bc4 {[%emt 0:01:08]} Bf5 {[%emt 0:02:50]} 14. Qc2 {[%emt 0:02:22]} 1/2-1/2

[Event "LJ Slovak Open 2022"]
[Site "Liptovsky Jan"]
[Date "2022.06.26"]
[Round "6.32"]
[White "Livnansky, Michal"]
[Black "Volek, Jan"]
[Result "0-1"]
[ECO "A41"]
[WhiteElo "1279"]
[BlackElo "1687"]
[Annotator "NA RC"]
[PlyCount "84"]
[EventDate "2022.06.23"]
[EventType "swiss"]
[EventCountry "SVK"]
[SourceTitle "playchess.com"]
[Source "ChessBase"]
[SourceQuality "1"]
[TimeControl "3600+30"]

1. d4 {[%emt 0:03:57]} g6 {[%emt 0:00:17]} 2. Nf3 {[%emt 0:00:29]} Bg7 {[%emt 0:00:16]} 3. Bf4 {[%emt 0:00:32]} d6 {[%emt 0:00:38]} 4. e3 {[%emt 0:00:53]} c5 {[%emt 0:00:42]} 5. Bb5+ {[%emt 0:00:31]} Bd7 {[%emt 0:00:20]} 6. Bxd7+ {[%emt 0:00:06]} Nxd7 {[%emt 0:00:30]} 7. c3 {[%emt 0:00:32]} cxd4 {[%emt 0:01:01]} 8. exd4 {[%emt 0:03:57]} Ngf6 {[%emt 0:00:26]} 9. O-O {[%emt 0:04:03]} O-O {[%emt 0:00:08]} 10. Nbd2 {[%emt 0:02:43]} Nh5 {[%emt 0:00:36]} 11. Be3 {[%emt 0:02:39]} Nb6 {[%emt 0:00:31]} 12. Qc2 {[%emt 0:03:46]} Nd5 {[%emt 0:02:18]} 13. Qe4 {[%emt 0:04:42]} Nhf6 {[%emt 0:01:59]} 14. Qc2 {[%emt 0:02:03]} Nxe3 {[%emt 0:00:58]} 15. fxe3 {[%emt 0:00:15]} Re8 {[%emt 0:02:21]} 16. e4 {[%emt 0:05:01]} e5 {[%emt 0:01:29]} 17. d5 {[%emt 0:04:11]} Ng4 {[%emt 0:01:02]} 18. Qb3 {[%emt 0:05:04]} Bh6 {[%emt 0:01:23]} 19. Nc4 {[%emt 0:04:52]} Qc7 {[%emt 0:03:58]} 20. Qb4 {[%emt 0:02:17]} a5 {[%emt 0:00:53]} 21. Qb5 {[%emt 0:03:25]} Rec8 {[%emt 0:03:40]} 22. Ncd2 {[%emt 0:05:39]} Be3+ {[%emt 0:02:24]} 23. Kh1 {[%emt 0:00:25]} Nf2+ {[%emt 0:00:35]} 24. Rxf2 {[%emt 0:02:37]} Bxf2 {[%emt 0:00:42]} 25. Rf1 {[%emt 0:01:00]} Be3 {[%emt 0:00:25]} 26. Qe2 {[%emt 0:00:30]} Bxd2 {[%emt 0:01:06]} 27. Qxd2 {[%emt 0:00:06]} f6 {[%emt 0:01:46]} 28. Qh6 {[%emt 0:01:05]} Qg7 {[%emt 0:00:21]} 29. Qh3 {[%emt 0:00:29]} Re8 {[%emt 0:00:36]} 30. g4 {[%emt 0:01:15]} g5 {[%emt 0:00:48]} 31. Nd2 {[%emt 0:00:55]} b5 {[%emt 0:00:56]} 32. Rf5 {[%emt 0:00:43]} b4 {[%emt 0:02:30]} 33. Nc4 {[%emt 0:01:35]} bxc3 {[%emt 0:02:32]} 34. bxc3 {[%emt 0:01:18]} Qe7 {[%emt 0:01:04]} 35. Qd3 {[%emt 0:01:48]} a4 {[%emt 0:02:33]} 36. Rf3 {[%emt 0:01:24]} a3 {[%emt 0:01:33]} 37. Ne3 {[%emt 0:01:04]} Rab8 {[%emt 0:02:00]} 38. Nf5 {[%emt 0:01:02]} Qf8 {[%emt 0:02:40]} 39. Qa6 {[%emt 0:00:19]} Red8 {[%emt 0:03:24]} 40. Qxa3 {[%emt 0:00:32]} Ra8 {[%emt 0:01:23]} 41. Qb3 {[%emt 0:00:25]} Rdb8 {[%emt 0:01:01]} 42. Qc4 {[%emt 0:00:38]} Rb2 {[%emt 0:01:32]} 0-1

[Event "LJ Slovak Open 2022"]
[Site "Liptovsky Jan"]
[Date "2022.06.26"]
[Round "6.33"]
[White "Hudak, Michal"]
[Black "Ciglian, Michal"]
[Result "1-0"]
[ECO "B13"]
[WhiteElo "1169"]
[BlackElo "1704"]
[Annotator "NA RC"]
[PlyCount "63"]
[EventDate "2022.06.23"]
[EventType "swiss"]
[EventCountry "SVK"]
[SourceTitle "playchess.com"]
[Source "ChessBase"]
[SourceQuality "1"]
[TimeControl "3600+30"]

1. d4 {[%emt 0:00:06]} c6 {[%emt 0:00:11]} 2. e4 {[%emt 0:00:14]} d5 {[%emt 0:00:22]} 3. exd5 {[%emt 0:01:20]} cxd5 {[%emt 0:00:52]} 4. Nf3 {[%emt 0:00:20]} Nc6 {[%emt 0:00:16]} 5. c4 {[%emt 0:03:04]} Bg4 {[%emt 0:01:09]} 6. Be3 {[%emt 0:24:26]} Nf6 {[%emt 0:05:29]} 7. c5 {[%emt 0:04:26]} e6 {[%emt 0:01:52]} 8. Bd3 {[%emt 0:01:32]} Be7 {[%emt 0:00:42]} 9. a3 {[%emt 0:06:56]} O-O {[%emt 0:01:25]} 10. Nc3 {[%emt 0:03:03]} b6 {[%emt 0:02:03]} 11. b4 {[%emt 0:07:07]} bxc5 {[%emt 0:01:58]} 12. bxc5 {[%emt 0:02:40]} Qa5 {[%emt 0:01:56]} 13. Qd2 {[%emt 0:02:34]} a6 {[%emt 0:03:20]} 14. h3 {[%emt 0:02:10]} Bh5 {[%emt 0:01:15]} 15. Bf4 {[%emt 0:03:58]} Bxf3 {[%emt 0:00:46]} 16. gxf3 {[%emt 0:00:24]} Nxd4 {[%emt 0:00:49]} 17. Bxh7+ {[%emt 0:01:17]} Nxh7 {[%emt 0:00:07]} 18. Qxd4 {[%emt 0:00:06]} Qxc5 {[%emt 0:00:22]} 19. Qd3 {[%emt 0:00:53]} Bf6 {[%emt 0:00:48]} 20. Bd2 {[%emt 0:01:40]} Rac8 {[%emt 0:02:43]} 21. Rc1 {[%emt 0:00:27]} Qxa3 {[%emt 0:00:21]} 22. Ke2 {[%emt 0:01:39]} Qd6 {[%emt 0:01:05]} 23. Rhg1 {[%emt 0:00:31]} Qe5+ {[%emt 0:00:27]} 24. Kf1 {[%emt 0:00:09]} Qh2 {[%emt 0:01:13]} 25. f4 {[%emt 0:00:52]} d4 {[%emt 0:02:09]} 26. Ne4 {[%emt 0:00:45]} Rxc1+ {[%emt 0:00:28]} 27. Bxc1 {[%emt 0:00:04]} Rc8 {[%emt 0:02:06]} 28. Bd2 {[%emt 0:00:10]} Rc3 {[%emt 0:03:28]} 29. Nxc3 {[%emt 0:00:36]} dxc3 {[%emt 0:00:06]} 30. Bc1 {[%emt 0:00:11]} Bh4 {[%emt 0:00:34]} 31. Qf3 {[%emt 0:01:16]} Nf6 {[%emt 0:00:20]} 32. Rh1 {[%emt 0:00:19]} 1-0

[Event "LJ Slovak Open 2022"]
[Site "Liptovsky Jan"]
[Date "2022.06.26"]
[Round "6.34"]
[White "Janouskova, Eliska"]
[Black "Staron, Ladislav"]
[Result "1/2-1/2"]
[ECO "B21"]
[WhiteElo "1167"]
[BlackElo "1695"]
[Annotator "NA RC"]
[PlyCount "44"]
[EventDate "2022.06.23"]
[EventType "swiss"]
[EventCountry "SVK"]
[SourceTitle "playchess.com"]
[Source "ChessBase"]
[SourceQuality "1"]
[TimeControl "3600+30"]

1. e4 {[%emt 0:00:16]} c5 {[%emt 0:00:30]} 2. d4 {[%emt 0:00:15]} cxd4 {[%emt 0:00:35]} 3. c3 {[%emt 0:00:48]} dxc3 {[%emt 0:01:54]} 4. Nxc3 {[%emt 0:00:10]} d6 {[%emt 0:00:31]} 5. Bc4 {[%emt 0:00:41]} e6 {[%emt 0:00:18]} 6. Nf3 {[%emt 0:01:05]} Qc7 {[%emt 0:00:31]} 7. Bb3 {[%emt 0:00:56]} a6 {[%emt 0:00:14]} 8. a4 {[%emt 0:02:57]} b6 {[%emt 0:03:04]} 9. O-O {[%emt 0:03:34]} Be7 {[%emt 0:00:22]} 10. Be3 {[%emt 0:03:27]} Nf6 {[%emt 0:01:35]} 11. Re1 {[%emt 0:04:30]} O-O {[%emt 0:00:10]} 12. Qe2 {[%emt 0:01:19]} h6 {[%emt 0:01:35]} 13. Rad1 {[%emt 0:02:46]} Bb7 {[%emt 0:02:02]} 14. Qd3 {[%emt 0:03:13]} Nbd7 {[%emt 0:02:29]} 15. Bc2 {[%emt 0:03:10]} Ne5 {[%emt 0:06:35]} 16. Nxe5 {[%emt 0:00:52]} dxe5 {[%emt 0:00:22]} 17. h3 {[%emt 0:03:27]} Rad8 {[%emt 0:00:06]} 18. Qe2 {[%emt 0:00:18]} Rxd1 {[%emt 0:00:21]} 19. Rxd1 {[%emt 0:00:22]} Rd8 {[%emt 0:00:37]} 20. Kh1 {[%emt 0:03:11]} Rxd1+ {[%emt 0:00:11]} 21. Qxd1 {[%emt 0:00:06]} Qc6 {[%emt 0:07:19]} 22. f3 {[%emt 0:01:13]} Qc7 {[%emt 0:04:46]} 1/2-1/2

[Event "LJ Slovak Open 2022"]
[Site "Liptovsky Jan"]
[Date "2022.06.26"]
[Round "6.35"]
[White "Petrik, Matus"]
[Black "Ropovik, Samuel"]
[Result "0-1"]
[ECO "A21"]
[WhiteElo "1684"]
[BlackElo "1453"]
[Annotator "NA RC"]
[PlyCount "54"]
[EventDate "2022.06.23"]
[EventType "swiss"]
[EventCountry "SVK"]
[SourceTitle "playchess.com"]
[Source "ChessBase"]
[SourceQuality "1"]
[TimeControl "3600+30"]

1. c4 {[%emt 0:11:11]} e5 {[%emt 0:00:23]} 2. Nc3 {[%emt 0:00:03]} Bb4 {[%emt 0:00:22]} 3. Nd5 {[%emt 0:00:02]} Be7 {[%emt 0:00:29]} 4. Nxe7 {[%emt 0:00:50]} Qxe7 {[%emt 0:00:09]} 5. d3 {[%emt 0:00:26]} Nc6 {[%emt 0:00:25]} 6. Nf3 {[%emt 0:00:20]} f5 {[%emt 0:01:22]} 7. Bg5 {[%emt 0:03:38]} Nf6 {[%emt 0:00:22]} 8. g3 {[%emt 0:01:18]} d6 {[%emt 0:00:52]} 9. Bg2 {[%emt 0:00:04]} O-O {[%emt 0:00:16]} 10. O-O {[%emt 0:00:04]} Bd7 {[%emt 0:06:38]} 11. Bd2 {[%emt 0:01:00]} Qf7 {[%emt 0:01:12]} 12. Ng5 {[%emt 0:02:04]} Qh5 {[%emt 0:01:16]} 13. Bf3 {[%emt 0:00:21]} Qg6 {[%emt 0:02:03]} 14. Bg2 {[%emt 0:07:59]} h6 {[%emt 0:06:28]} 15. Nf3 {[%emt 0:02:07]} Qh5 {[%emt 0:06:04]} 16. Bc3 {[%emt 0:03:14]} f4 {[%emt 0:05:20]} 17. e3 {[%emt 0:02:46]} Bh3 {[%emt 0:10:23]} 18. Nh4 {[%emt 0:02:20]} Bg4 {[%emt 0:06:13]} 19. Bf3 {[%emt 0:00:02]} g5 {[%emt 0:02:55]} 20. Bxg4 {[%emt 0:00:13]} Nxg4 {[%emt 0:00:12]} 21. h3 {[%emt 0:00:09]} gxh4 {[%emt 0:02:20]} 22. Qxg4+ {[%emt 0:02:12]} Qxg4 {[%emt 0:00:40]} 23. hxg4 {[%emt 0:00:02]} hxg3 {[%emt 0:01:36]} 24. fxg3 {[%emt 0:01:56]} fxe3 {[%emt 0:00:21]} 25. Rae1 {[%emt 0:00:45]} Rxf1+ {[%emt 0:04:40]} 26. Kxf1 {[%emt 0:00:01]} Rf8+ {[%emt 0:00:57]} 27. Ke2 {[%emt 0:00:02]} Nd4+ {[%emt 0:00:24]} 0-1

[Event "LJ Slovak Open 2022"]
[Site "Liptovsky Jan"]
[Date "2022.06.26"]
[Round "6.36"]
[White "Vastik, Tomas"]
[Black "Recky, Norbert"]
[Result "1/2-1/2"]
[ECO "B90"]
[WhiteElo "1457"]
[BlackElo "1755"]
[Annotator "NA RC"]
[PlyCount "77"]
[EventDate "2022.06.23"]
[EventType "swiss"]
[EventCountry "SVK"]
[SourceTitle "playchess.com"]
[Source "ChessBase"]
[SourceQuality "1"]
[TimeControl "3600+30"]

1. e4 {[%emt 0:00:03]} c5 {[%emt 0:00:00]} 2. Nf3 {[%emt 0:00:00]} d6 {[%emt 0:00:00]} 3. d4 {[%emt 0:00:09]} cxd4 {[%emt 0:00:00]} 4. Nxd4 {[%emt 0:00:30]} Nf6 {[%emt 0:00:11]} 5. Nc3 {[%emt 0:00:30]} a6 {[%emt 0:00:30]} 6. h3 {[%emt 0:00:30]} e5 {[%emt 0:00:30]} 7. Nf3 {[%emt 0:00:30]} Be6 {[%emt 0:00:14]} 8. Be2 {[%emt 0:01:10]} Be7 {[%emt 0:00:30]} 9. O-O {[%emt 0:00:30]} O-O {[%emt 0:00:30]} 10. Bg5 {[%emt 0:00:30]} Nbd7 {[%emt 0:00:30]} 11. Qd2 {[%emt 0:02:46]} Rc8 {[%emt 0:03:01]} 12. a3 {[%emt 0:00:45]} Rc5 {[%emt 0:02:53]} 13. Rfd1 {[%emt 0:02:49]} d5 {[%emt 0:03:13]} 14. b4 {[%emt 0:03:46]} Rxc3 {[%emt 0:01:23]} 15. Qxc3 {[%emt 0:05:45]} Nxe4 {[%emt 0:03:39]} 16. Bxe7 {[%emt 0:01:21]} Nxc3 {[%emt 0:01:37]} 17. Bxd8 {[%emt 0:00:13]} Nxe2+ {[%emt 0:01:51]} 18. Kf1 {[%emt 0:01:26]} Nc3 {[%emt 0:01:48]} 19. Bg5 {[%emt 0:19:48]} Nxd1 {[%emt 0:02:40]} 20. Rxd1 {[%emt 0:00:06]} Rc8 {[%emt 0:00:05]} 21. Rc1 {[%emt 0:00:52]} f6 {[%emt 0:02:22]} 22. Bd2 {[%emt 0:00:26]} b5 {[%emt 0:01:26]} 23. c3 {[%emt 0:01:16]} Nb6 {[%emt 0:00:29]} 24. Ke1 {[%emt 0:01:15]} Kf7 {[%emt 0:01:49]} 25. Be3 {[%emt 0:01:21]} Na4 {[%emt 0:01:15]} 26. Kd2 {[%emt 0:01:26]} g5 {[%emt 0:05:39]} 27. g4 {[%emt 0:03:33]} h5 {[%emt 0:02:39]} 28. gxh5 {[%emt 0:01:18]} Rh8 {[%emt 0:00:18]} 29. h6 {[%emt 0:00:49]} Rxh6 {[%emt 0:00:44]} 30. h4 {[%emt 0:00:18]} Rh5 {[%emt 0:05:23]} 31. hxg5 {[%emt 0:01:08]} Bg4 {[%emt 0:00:24]} 32. Ne1 {[%emt 0:02:13]} fxg5 {[%emt 0:03:01]} 33. Nd3 {[%emt 0:01:00]} Kf6 {[%emt 0:01:24]} 34. Nc5 {[%emt 0:01:09]} Nxc5 {[%emt 0:00:40]} 35. bxc5 {[%emt 0:00:53]} Bd7 {[%emt 0:00:56]} 36. Rg1 {[%emt 0:01:16]} g4 {[%emt 0:01:23]} 37. c6 {[%emt 0:01:09]} Bc8 {[%emt 0:03:06]} 38. c7 {[%emt 0:02:31]} Ke7 {[%emt 0:01:37]} 39. Bc5+ {[%emt 0:00:37]} 1/2-1/2

[Event "LJ Slovak Open 2022"]
[Site "Liptovsky Jan"]
[Date "2022.06.26"]
[Round "6.37"]
[White "Lacko, Stanislav"]
[Black "Subjakova, Kristina"]
[Result "0-1"]
[ECO "C30"]
[WhiteElo "1462"]
[BlackElo "1623"]
[Annotator "NA RC"]
[PlyCount "46"]
[EventDate "2022.06.23"]
[EventType "swiss"]
[EventCountry "SVK"]
[SourceTitle "playchess.com"]
[Source "ChessBase"]
[SourceQuality "1"]
[TimeControl "3600+30"]

1. e4 {[%emt 0:00:04]} e5 {[%emt 0:00:04]} 2. Nc3 {[%emt 0:00:08]} Nf6 {[%emt 0:00:07]} 3. f4 {[%emt 0:00:08]} d6 {[%emt 0:00:08]} 4. Nf3 {[%emt 0:00:33]} Bg4 {[%emt 0:00:36]} 5. Bc4 {[%emt 0:02:55]} a6 {[%emt 0:01:40]} 6. d3 {[%emt 0:02:15]} Nc6 {[%emt 0:00:27]} 7. Be3 {[%emt 0:01:28]} Be7 {[%emt 0:01:38]} 8. O-O {[%emt 0:02:14]} O-O {[%emt 0:02:02]} 9. Qd2 {[%emt 0:01:30]} Bxf3 {[%emt 0:02:54]} 10. Rxf3 {[%emt 0:00:21]} Ng4 {[%emt 0:00:10]} 11. Nd5 {[%emt 0:05:31]} Nxe3 {[%emt 0:02:15]} 12. Nxe7+ {[%emt 0:02:34]} Qxe7 {[%emt 0:00:17]} 13. Qxe3 {[%emt 0:02:31]} Na5 {[%emt 0:01:38]} 14. Bb3 {[%emt 0:02:06]} Nxb3 {[%emt 0:01:18]} 15. axb3 {[%emt 0:00:12]} f5 {[%emt 0:03:03]} 16. Raf1 {[%emt 0:03:22]} exf4 {[%emt 0:00:45]} 17. Rxf4 {[%emt 0:03:46]} fxe4 {[%emt 0:02:41]} 18. Rxe4 {[%emt 0:03:40]} Rxf1+ {[%emt 0:00:39]} 19. Kxf1 {[%emt 0:00:15]} Rf8+ {[%emt 0:00:25]} 20. Ke2 {[%emt 0:01:48]} Qf6 {[%emt 0:00:45]} 21. Re8 {[%emt 0:04:41]} Qf1+ {[%emt 0:01:25]} 22. Kd2 {[%emt 0:00:27]} Qxg2+ {[%emt 0:00:40]} 23. Kc3 {[%emt 0:00:20]} Qc6+ {[%emt 0:00:06]} 0-1